[Event "German Bundesliga 2021-22"]
[Site "Germany"]
[Date "2022.05.01"]
[Round "6.13"]
[White "Sonntag, Hans-Hubert"]
[Black "Pruijssers, Roeland"]
[Result "0-1"]
[ECO "B56"]
[WhiteElo "2322"]
[BlackElo "2565"]
[Annotator "TA"]
[PlyCount "44"]
[EventDate "2022.03.05"]
[EventType "team-tourn"]
[EventCountry "GER"]
[SourceTitle "playchess.com"]
[Source "ChessBase"]
[SourceQuality "1"]
[TimeControl "40/5400+30:1800+30"]

{[%evp 26,44,-32,-23,-33,-181,-191,-185,-178,-180,-177,-172,-129,-149,-129,-284,-256,-482,-477,-706,-707]} 1. e4 {[%emt 0:00:00]} c5 {[%emt 0:00:00]} 2. Nf3 {[%emt 0:00:00]} Nc6 {[%emt 0:00:00]} 3. d4 {[%emt 0:00:00]} cxd4 {[%emt 0:00:00]} 4. Nxd4 {[%emt 0:00:00]} Nf6 {[%emt 0:00:00]} 5. Nc3 {[%emt 0:00:00]} d6 {[%emt 0:00:00]} 6. g3 {[%emt 0:00:00]} g6 {[%emt 0:00:00]} 7. Nde2 {[%emt 0:00:00]} Bg7 {[%emt 0:00:00]} 8. Bg2 {[%emt 0:00:00]} O-O {[%emt 0:00:00]} 9. O-O {[%emt 0:00:00]} Rb8 {[%emt 0:00:00]} 10. a4 {[%emt 0:00:00]} a6 {[%emt 0:07:31][%cal Ba7a6,Ba6b5,Bb5b4][%mdl 32]} 11. h3 {[%emt 0:06:49]} b5 {[%emt 0:00:38]} 12. axb5 {[%emt 0:00:12]} axb5 {[%emt 0:00:07]} 13. Be3 {[%emt 0:00:50]} b4 {[%emt 0:00:51]} 14. Nd5 {[%emt 0:01:23]} Nd7 {[%emt 0:00:25] B70: Sicilian Dragon: 6 g3 and 6 Be2 (without a later Be3).} 15. Nd4 {[%emt 0:02:19] [#]} ({White should try} 15. Qd2 $15) 15... Bxd4 $1 $19 {[%emt 0:00:47]} 16. Bxd4 {[%emt 0:00:33]} e6 {[%emt 0:00:07] Black is clearly better.} 17. Be3 {[%emt 0:23:30]} exd5 {[%emt 0:03:32]} 18. Qxd5 {[%emt 0:00:21] [#]} Qc7 $146 {[%emt 0:10:05]} ({Predecessor:} 18... Nde5 19. Rfd1 Ne7 20. Qd4 Be6 21. Bh6 N7c6 22. Qxd6 Qxd6 23. Rxd6 Rfd8 24. Rxd8+ Rxd8 25. Ra6 Nd4 26. c3 Ndf3+ 27. Bxf3 Nxf3+ 28. Kg2 Ne1+ {0-1 (28) Agopov,M (2449)-Henrichs,T (2485) Kallithea 2008}) 19. Rfd1 {[%emt 0:02:26]} Nce5 {[%emt 0:11:07]} 20. Ra7 $2 {[%emt 0:32:05] [#]} (20. Bh6 $17) 20... Qxc2 {[%emt 0:07:20]} 21. Rd2 $2 {[%emt 0:03:42]} (21. b3) 21... Qb1+ {[%emt 0:15:40]} 22. Kh2 {[%emt 0:03:34]} (22. Rd1 $142 Qxb2 23. Raa1) 22... Nf6 {Weighted Error Value: White=1.13/Black=0.05 (flawless)} 0-1